fUSD/lending_fUSD_20240301
["ID","MTS","AMOUNT","RATE_DAILY","PERIOD"]
[316016967,1709326258358,-500.0,0.00022027,2]
[316016968,1709326258373,-4691.09,0.00022027,2]
[316016969,1709326258382,-348.53,0.00022027,2]
[316016970,1709326258393,-150.0,0.00022036,2]
[316016971,1709326258402,-158.76,0.00022062,2]
[316016972,1709326258411,-8282.47989128,0.0002207,2]
[316016973,1709326258421,-150.0,0.00022096,2]
[316016974,1709326258431,-150.0,0.00022102,2]
[316016975,1709326258443,-800.0,0.0002211,2]
[316016976,1709326258454,-4931.44,0.00022119,2]
[316016977,1709326258463,-163.0,0.00022121,2]
[316016978,1709326258472,-603.06305427,0.00022135,2]
[316016979,1709326258482,-500.0,0.00022136,2]
[316016980,1709326258493,-500.0,0.00022136,2]
[316016981,1709326258502,-500.0,0.00022136,2]
[316016982,1709326258512,-500.0,0.00022136,2]
[316016983,1709326258521,-500.0,0.00022136,2]
[316016984,1709326258531,-500.0,0.00022136,2]
[316016985,1709326258540,-500.0,0.00022136,2]
[316016986,1709326258549,-500.0,0.00022136,2]
[316016987,1709326258558,-500.0,0.00022136,2]
[316016988,1709326258567,-500.0,0.00022136,2]
[316016989,1709326258577,-500.0,0.00022136,2]
[316016990,1709326258586,-500.0,0.00022136,2]
[316016991,1709326258595,-500.0,0.00022136,2]
[316016992,1709326258605,-569.49504728,0.00022136,2]
[316016993,1709326258614,-548.19615562,0.00022136,2]
[316016994,1709326258623,-500.0,0.00022136,2]
[316016995,1709326258632,-500.0,0.00022136,2]
[316016996,1709326258641,-500.0,0.00022136,2]
[316016997,1709326258650,-500.0,0.00022136,2]
[316016998,1709326258660,-500.0,0.00022136,2]
[316016999,1709326258669,-500.0,0.00022136,2]
[316017000,1709326258678,-500.0,0.00022136,2]
[316017001,1709326258688,-162.03650432,0.00022136,2]
[316017002,1709326258697,-500.0,0.00022136,2]
[316017003,1709326258707,-500.0,0.00022136,2]
[316017004,1709326258717,-251.33485091,0.00022136,2]
[316017005,1709326258726,-500.0,0.00022136,2]
[316017006,1709326258735,-500.0,0.00022136,2]
[316017007,1709326258745,-420.60092833,0.00022136,2]
[316017008,1709326258754,-500.0,0.00022136,2]
[316017009,1709326258764,-500.0,0.00022136,2]
[316017010,1709326258773,-500.0,0.00022136,2]
[316017011,1709326258783,-500.0,0.00022136,2]
[316017012,1709326258791,-500.0,0.00022136,2]
[316017013,1709326258801,-500.0,0.00022136,2]
[316017014,1709326258810,-502.4531386,0.00022136,2]
[316017015,1709326258819,-500.0,0.00022136,2]
[316017016,1709326258829,-500.0,0.00022136,2]
[316017017,1709326258838,-500.0,0.00022136,2]
[316017018,1709326258847,-500.0,0.00022136,2]
[316017019,1709326258856,-500.0,0.00022136,2]
[316017020,1709326258865,-500.0,0.00022136,2]
[316017021,1709326258874,-500.0,0.00022136,2]
[316017022,1709326258883,-500.0,0.00022136,2]
[316017023,1709326258892,-500.0,0.00022136,2]
[316017024,1709326258902,-500.0,0.00022136,2]
[316017025,1709326258911,-500.0,0.00022136,2]
[316017026,1709326258920,-343.10807001,0.00022136,2]
[316017027,1709326258930,-500.0,0.00022136,2]
[316017028,1709326258939,-500.0,0.00022136,2]
[316017029,1709326258948,-500.0,0.00022136,2]
[316017030,1709326258957,-500.0,0.00022136,2]
[316017031,1709326258967,-500.0,0.00022136,2]
[316017032,1709326258976,-500.0,0.00022136,2]
[316017033,1709326258985,-500.0,0.00022136,2]
[316017034,1709326258995,-500.0,0.00022136,2]
[316017035,1709326259005,-500.0,0.00022136,2]
[316017036,1709326259014,-500.0,0.00022136,2]
[316017037,1709326259024,-500.0,0.00022136,2]
[316017038,1709326259033,-500.0,0.00022136,2]
[316017039,1709326259043,-500.0,0.00022136,2]
[316017040,1709326259053,-500.0,0.00022136,2]
[316017041,1709326259063,-500.0,0.00022136,2]
[316017042,1709326259073,-500.0,0.00022136,2]
[316017043,1709326259082,-500.0,0.00022136,2]
[316017044,1709326259092,-582.51593589,0.00022136,2]
[316017045,1709326259102,-500.0,0.00022136,2]
[316017046,1709326259111,-500.0,0.00022136,2]
[316017047,1709326259121,-500.0,0.00022136,2]
[316017048,1709326259130,-500.0,0.00022136,2]
[316017049,1709326259140,-500.0,0.00022136,2]
[316017050,1709326259150,-500.0,0.00022136,2]
[316017051,1709326259159,-500.0,0.00022136,2]
[316017052,1709326259169,-500.0,0.00022136,2]
[316017053,1709326259179,-500.0,0.00022136,2]
[316017054,1709326259189,-500.0,0.00022136,2]
[316017055,1709326259199,-500.0,0.00022136,2]
[316017056,1709326259209,-500.0,0.00022136,2]
[316017057,1709326259218,-500.0,0.00022136,2]
[316017058,1709326259229,-500.0,0.00022136,2]
[316017059,1709326259238,-500.0,0.00022136,2]
[316017060,1709326259249,-500.0,0.00022136,2]
[316017061,1709326259259,-500.0,0.00022136,2]
[316017062,1709326259268,-500.0,0.00022136,2]
[316017063,1709326259278,-500.0,0.00022136,2]
[316017064,1709326259288,-500.0,0.00022136,2]
[316017065,1709326259298,-649.06,0.00022136,2]
[316017066,1709326259307,-500.0,0.00022136,2]
[316017067,1709326259317,-500.0,0.00022136,2]
[316017068,1709326259327,-500.0,0.00022136,2]
[316017069,1709326259338,-500.0,0.00022136,2]
[316017070,1709326259350,-500.0,0.00022136,2]
[316017071,1709326259360,-500.0,0.00022136,2]
[316017072,1709326259370,-500.0,0.00022136,2]
[316017073,1709326259380,-500.0,0.00022136,2]
[316017074,1709326259391,-500.0,0.00022136,2]
[316017075,1709326259401,-500.0,0.00022136,2]
[316017076,1709326259411,-500.0,0.00022136,2]
[316017077,1709326259421,-500.0,0.00022136,2]
[316017078,1709326259433,-500.0,0.00022136,2]
[316017079,1709326259444,-500.0,0.00022136,2]
[316017080,1709326259454,-500.0,0.00022136,2]
[316017081,1709326259464,-500.0,0.00022136,2]
[316017082,1709326259475,-500.0,0.00022136,2]
[316017083,1709326259484,-500.0,0.00022136,2]
[316017084,1709326259495,-500.0,0.00022136,2]
[316017085,1709326259505,-500.0,0.00022136,2]
[316017086,1709326259515,-500.0,0.00022136,2]
[316017087,1709326259525,-501.22111872,0.00022136,2]
[316017088,1709326259535,-706.84,0.00022136,2]
[316017089,1709326259545,-500.0,0.00022136,2]
[316017090,1709326259555,-500.0,0.00022136,2]
[316017091,1709326259565,-500.0,0.00022136,2]
[316017092,1709326259575,-500.0,0.00022136,2]
[316017093,1709326259586,-548.65,0.00022136,2]
[316017094,1709326259596,-500.0,0.00022136,2]
[316017095,1709326259606,-500.0,0.00022136,2]
[316017096,1709326259615,-500.0,0.00022136,2]
[316017097,1709326259625,-500.0,0.00022136,2]
[316017098,1709326259635,-273.0290154,0.00022136,2]
[316017099,1709326259646,-202.88318297,0.00022136,2]
[316017100,1709326259655,-500.0,0.00022136,2]
[316017101,1709326259665,-500.0,0.00022136,2]
[316017102,1709326259675,-500.0,0.00022136,2]
[316017103,1709326259685,-500.0,0.00022136,2]
[316017104,1709326259695,-500.0,0.00022136,2]
[316017105,1709326259705,-500.0,0.00022136,2]
[316017106,1709326259714,-500.0,0.00022136,2]
[316017107,1709326259724,-500.0,0.00022136,2]
[316017108,1709326259734,-947.83,0.00022136,2]
[316017109,1709326259744,-500.0,0.00022136,2]
[316017110,1709326259754,-500.0,0.00022136,2]
[316017111,1709326259764,-500.0,0.00022136,2]
[316017112,1709326259773,-500.0,0.00022136,2]
[316017113,1709326259784,-500.0,0.00022136,2]
[316017114,1709326259794,-858.32,0.00022136,2]
[316017115,1709326259806,-500.0,0.00022136,2]
[316017116,1709326259815,-500.0,0.00022136,2]
[316017117,1709326259826,-419.51,0.00022136,2]
[316017118,1709326259837,-500.0,0.00022136,2]
[316017119,1709326259848,-500.0,0.00022136,2]
[316017120,1709326259858,-500.0,0.00022136,2]
[316017121,1709326259868,-579.45,0.00022136,2]
[316017122,1709326259877,-169.39065846,0.00022136,2]
[316017123,1709326259888,-500.0,0.00022136,2]
[316017124,1709326259898,-500.0,0.00022136,2]
[316017125,1709326259908,-500.0,0.00022136,2]
[316017126,1709326259918,-500.0,0.00022136,2]
[316017127,1709326259928,-500.0,0.00022136,2]
[316017128,1709326259938,-815.58,0.00022136,2]
[316017129,1709326259948,-500.0,0.00022136,2]
[316017130,1709326259958,-500.0,0.00022136,2]
[316017131,1709326259967,-500.0,0.00022136,2]
[316017132,1709326259978,-500.0,0.00022136,2]
[316017133,1709326259988,-500.0,0.00022136,2]
[316017134,1709326260001,-586.26989132,0.00022136,2]
[316017135,1709326260011,-659.97,0.00022136,2]
[316017136,1709326260021,-500.0,0.00022136,2]
[316017137,1709326260031,-500.0,0.00022136,2]
[316017138,1709326260040,-571.62,0.00022136,2]
[316017139,1709326260050,-500.0,0.00022136,2]
[316017140,1709326260060,-786.82,0.00022136,2]
[316017141,1709326260070,-500.0,0.00022136,2]
[316017142,1709326260080,-500.0,0.00022136,2]
[316017143,1709326260090,-500.0,0.00022136,2]
[316017144,1709326260099,-500.0,0.00022136,2]
[316017145,1709326260109,-500.0,0.00022136,2]
[316017146,1709326260119,-500.0,0.00022136,2]
[316017147,1709326260129,-500.0,0.00022136,2]
[316017148,1709326260138,-500.0,0.00022136,2]
[316017149,1709326260148,-626.66,0.00022136,2]
[316017150,1709326260158,-840.97,0.00022136,2]
[316017151,1709326260168,-566.2,0.00022136,2]
[316017152,1709326260177,-500.0,0.00022136,2]
[316017153,1709326260187,-500.0,0.00022136,2]
[316017154,1709326260197,-500.0,0.00022136,2]
[316017155,1709326260211,-500.0,0.00022136,2]
[316017156,1709326260222,-896.77,0.00022136,2]
[316017157,1709326260232,-208.29710045,0.00022136,2]
[316017158,1709326260243,-610.84,0.00022136,2]
[316017159,1709326260255,-500.0,0.00022136,2]
[316017160,1709326260266,-500.0,0.00022136,2]
[316017161,1709326260276,-715.55,0.00022136,2]
[316017162,1709326260287,-500.0,0.00022136,2]
[316017163,1709326260298,-500.0,0.00022136,2]
[316017164,1709326260308,-1311.49,0.00022136,2]
[316017165,1709326260318,-262.96499734,0.00022136,2]
[316017166,1709326260329,-607.55,0.00022136,2]
[316017167,1709326260340,-500.0,0.00022136,2]
[316017168,1709326260355,-500.0,0.00022136,2]
[316017169,1709326260365,-500.0,0.00022136,2]
[316017170,1709326260376,-500.0,0.00022136,2]
[316017171,1709326260386,-500.0,0.00022136,2]
[316017172,1709326260397,-500.0,0.00022136,2]
[316017173,1709326260407,-500.0,0.00022136,2]
[316017174,1709326260417,-500.0,0.00022136,2]
[316017175,1709326260427,-500.0,0.00022136,2]
[316017176,1709326260438,-593.85225416,0.00022136,2]
[316017177,1709326260450,-550.28,0.00022136,2]
[316017178,1709326260460,-500.0,0.00022136,2]
[316017179,1709326260470,-500.0,0.00022136,2]
[316017180,1709326260480,-500.0,0.00022136,2]
[316017181,1709326260490,-500.0,0.00022136,2]
[316017182,1709326260502,-500.0,0.00022136,2]
[316017183,1709326260513,-500.0,0.00022136,2]
[316017184,1709326260523,-500.0,0.00022136,2]
[316017185,1709326260533,-500.0,0.00022136,2]
[316017186,1709326260543,-500.0,0.00022136,2]
[316017187,1709326260553,-500.0,0.00022136,2]
[316017188,1709326260563,-500.0,0.00022136,2]
[316017189,1709326260573,-500.0,0.00022136,2]
[316017190,1709326260583,-500.0,0.00022136,2]
[316017191,1709326260593,-939.4,0.00022136,2]
[316017192,1709326260603,-500.0,0.00022136,2]
[316017193,1709326260613,-500.0,0.00022136,2]
[316017194,1709326260623,-500.0,0.00022136,2]
[316017195,1709326260633,-500.0,0.00022136,2]
[316017196,1709326260643,-500.0,0.00022136,2]
[316017197,1709326260652,-500.0,0.00022136,2]
[316017198,1709326260664,-500.0,0.00022136,2]
[316017199,1709326260674,-500.0,0.00022136,2]
[316017200,1709326260684,-500.0,0.00022136,2]
[316017201,1709326260693,-500.0,0.00022136,2]
[316017202,1709326260703,-500.0,0.00022136,2]
[316017203,1709326260713,-500.0,0.00022136,2]
[316017204,1709326260723,-500.0,0.00022136,2]
[316017205,1709326260733,-500.0,0.00022136,2]
[316017206,1709326260744,-500.0,0.00022136,2]
[316017207,1709326260755,-500.0,0.00022136,2]
[316017208,1709326260765,-500.0,0.00022136,2]
[316017209,1709326260775,-413.68036798,0.00022136,2]
[316017210,1709326260787,-196.12,0.00022136,2]
[316017211,1709326260797,-500.0,0.00022136,2]
[316017212,1709326260808,-500.0,0.00022136,2]
[316017213,1709326260818,-500.0,0.00022136,2]
[316017214,1709326260828,-500.0,0.00022136,2]
[316017215,1709326260838,-896.7,0.00022136,2]
[316017216,1709326260849,-500.0,0.00022136,2]
[316017217,1709326260859,-500.0,0.00022136,2]
[316017218,1709326260870,-359.70678374,0.00022136,2]
[316017219,1709326260882,-693.65,0.00022136,2]
[316017220,1709326260892,-500.0,0.00022136,2]
[316017221,1709326260903,-500.0,0.00022136,2]
[316017222,1709326260913,-500.0,0.00022136,2]
[316017223,1709326260924,-500.0,0.00022136,2]
[316017224,1709326260934,-500.0,0.00022136,2]
[316017225,1709326260944,-500.0,0.00022136,2]
[316017226,1709326260954,-629.71,0.00022136,2]
[316017227,1709326260966,-500.0,0.00022136,2]
[316017228,1709326260976,-500.0,0.00022136,2]
[316017229,1709326260986,-630.41,0.00022136,2]
[316017230,1709326260997,-584.54,0.00022136,2]
[316017231,1709326261007,-500.0,0.00022136,2]
[316017232,1709326261018,-500.0,0.00022136,2]
[316017233,1709326261028,-500.0,0.00022136,2]
[316017234,1709326261039,-500.0,0.00022136,2]
[316017235,1709326261049,-500.0,0.00022136,2]
[316017236,1709326261059,-500.0,0.00022136,2]
[316017237,1709326261069,-500.0,0.00022136,2]
[316017238,1709326261079,-500.0,0.00022136,2]
[316017239,1709326261089,-832.14,0.00022136,2]
[316017240,1709326261099,-500.0,0.00022136,2]
[316017241,1709326261109,-500.0,0.00022136,2]
[316017242,1709326261120,-500.0,0.00022136,2]
[316017243,1709326261131,-500.0,0.00022136,2]
[316017244,1709326261141,-500.0,0.00022136,2]
[316017245,1709326261152,-500.0,0.00022136,2]
[316017246,1709326261162,-500.0,0.00022136,2]
[316017247,1709326261172,-500.0,0.00022136,2]
[316017248,1709326261182,-500.0,0.00022136,2]
[316017249,1709326261192,-192.4926286,0.00022136,2]
[316017250,1709326261203,-500.0,0.00022136,2]
[316017251,1709326261213,-500.0,0.00022136,2]
[316017252,1709326261223,-500.0,0.00022136,2]
[316017253,1709326261233,-500.0,0.00022136,2]
[316017254,1709326261244,-500.0,0.00022136,2]
[316017255,1709326261259,-500.0,0.00022136,2]
[316017256,1709326261270,-500.0,0.00022136,2]
[316017257,1709326261280,-500.0,0.00022136,2]
[316017258,1709326261291,-500.0,0.00022136,2]
[316017259,1709326261301,-150.0,0.00022136,2]
[316017260,1709326261312,-500.0,0.00022136,2]
[316017261,1709326261634,-500.0,0.00022136,2]
[316017262,1709326261655,-1200.51,0.00022136,2]
[316017263,1709326261665,-500.0,0.00022136,2]
[316017264,1709326261674,-500.0,0.00022136,2]
[316017265,1709326261684,-500.0,0.00022136,2]
[316017266,1709326261694,-500.0,0.00022136,2]
[316017267,1709326261704,-500.0,0.00022136,2]
[316017268,1709326261713,-419.68,0.00022136,2]
[316017269,1709326261723,-635.32,0.00022136,2]
[316017270,1709326261733,-377.10346024,0.00022136,2]
[316017271,1709326261742,-500.0,0.00022136,2]
[316017272,1709326261754,-500.0,0.00022136,2]
[316017273,1709326261763,-500.0,0.00022136,2]
[316017274,1709326261773,-500.0,0.00022136,2]
[316017275,1709326261783,-922.78,0.00022136,2]
[316017276,1709326261792,-500.0,0.00022136,2]
[316017277,1709326261802,-628.01,0.00022136,2]
[316017278,1709326261811,-866.97,0.00022136,2]
[316017279,1709326261821,-541.25,0.00022136,2]
[316017280,1709326261830,-500.0,0.00022136,2]
[316017281,1709326261840,-500.0,0.00022136,2]
[316017282,1709326261849,-615.71,0.00022136,2]
[316017283,1709326261859,-500.0,0.00022136,2]
[316017284,1709326261868,-831.11,0.00022136,2]
[316017285,1709326261878,-500.0,0.00022136,2]
[316017286,1709326261887,-576.1,0.00022136,2]
[316017287,1709326261898,-500.0,0.00022136,2]
[316017288,1709326261907,-182.20837423,0.00022136,2]
[316017289,1709326261917,-500.0,0.00022136,2]
[316017290,1709326261927,-1218.11,0.00022136,2]
[316017291,1709326261936,-500.0,0.00022136,2]
[316017292,1709326261945,-500.0,0.00022136,2]
[316017293,1709326261956,-500.0,0.00022136,2]
[316017294,1709326261965,-500.0,0.00022136,2]
[316017295,1709326261975,-500.0,0.00022136,2]
[316017296,1709326261984,-500.0,0.00022136,2]
[316017297,1709326261994,-500.0,0.00022136,2]
[316017298,1709326262006,-568.15,0.00022136,2]
[316017299,1709326262015,-500.0,0.00022136,2]
[316017300,1709326262024,-500.0,0.00022136,2]
[316017301,1709326262033,-500.0,0.00022136,2]
[316017302,1709326262043,-1166.34,0.00022136,2]
[316017303,1709326262053,-500.0,0.00022136,2]
[316017304,1709326262062,-500.0,0.00022136,2]
[316017305,1709326262073,-500.0,0.00022136,2]
[316017306,1709326262084,-500.0,0.00022136,2]
[316017307,1709326262094,-585.48,0.00022136,2]
[316017308,1709326262104,-500.0,0.00022136,2]
[316017309,1709326262114,-500.0,0.00022136,2]
[316017310,1709326262124,-500.0,0.00022136,2]
[316017311,1709326262134,-500.0,0.00022136,2]
[316017312,1709326262143,-500.0,0.00022136,2]
[316017313,1709326262153,-500.0,0.00022136,2]
[316017314,1709326262162,-510.68,0.00022136,2]
[316017315,1709326262171,-1486.83,0.00022136,2]
[316017316,1709326262181,-500.0,0.00022136,2]
[316017317,1709326262190,-1115.19,0.00022136,2]
[316017318,1709326262199,-500.0,0.00022136,2]
[316017319,1709326262209,-500.0,0.00022136,2]
[316017320,1709326262224,-500.0,0.00022136,2]
[316017321,1709326262234,-500.0,0.00022136,2]
[316017322,1709326262244,-582.13,0.00022136,2]
[316017323,1709326262257,-6194.65,0.00022136,2]
[316017324,1709326262267,-500.0,0.00022136,2]
[316017325,1709326262277,-500.0,0.00022136,2]
[316017326,1709326262287,-500.0,0.00022136,2]
[316017327,1709326262297,-500.0,0.00022136,2]
[316017328,1709326262307,-500.0,0.00022136,2]
[316017329,1709326262317,-659.76,0.00022136,2]
[316017330,1709326262327,-16855.01,0.00022136,2]
[316017331,1709326262337,-656.81,0.00022136,2]
[316017332,1709326262349,-500.0,0.00022136,2]
[316017333,1709326262359,-500.0,0.00022136,2]
[316017334,1709326262369,-500.0,0.00022136,2]
[316017335,1709326262379,-622.52,0.00022136,2]
[316017336,1709326262389,-942.75,0.00022136,2]
[316017337,1709326262400,-500.0,0.00022136,2]
[316017338,1709326262410,-2306.71,0.00022136,2]
[316017339,1709326262420,-631.62,0.00022136,2]
[316017340,1709326262429,-500.0,0.00022136,2]
[316017341,1709326262440,-536.33707778,0.00022136,2]
[316017342,1709326262450,-683.48,0.00022136,2]
[316017343,1709326262459,-500.0,0.00022136,2]
[316017344,1709326262469,-500.0,0.00022136,2]
[316017345,1709326262479,-532.65569335,0.00022136,2]
[316017346,1709326262489,-500.0,0.00022136,2]
[316017347,1709326262501,-500.0,0.00022136,2]
[316017348,1709326262511,-851.74,0.00022136,2]
[316017349,1709326262520,-4012.18,0.00022136,2]
[316017350,1709326262531,-500.0,0.00022136,2]
[316017351,1709326262541,-974.43,0.00022136,2]
[316017352,1709326262550,-500.0,0.00022136,2]
[316017353,1709326262560,-500.0,0.00022136,2]
[316017354,1709326262570,-16838.98,0.00022136,2]
[316017355,1709326262579,-720.14,0.00022136,2]
[316017356,1709326262589,-500.0,0.00022136,2]
[316017357,1709326262599,-500.0,0.00022136,2]
[316017358,1709326262609,-500.0,0.00022136,2]
[316017359,1709326262619,-500.0,0.00022136,2]
[316017360,1709326262628,-500.0,0.00022136,2]
[316017361,1709326262638,-500.0,0.00022136,2]
[316017362,1709326262648,-500.0,0.00022136,2]
[316017363,1709326262657,-1233.77,0.00022136,2]
[316017364,1709326262667,-500.0,0.00022136,2]
[316017365,1709326262677,-5627.93,0.00022136,2]
[316017366,1709326262686,-500.0,0.00022136,2]
[316017367,1709326262697,-979.73,0.00022136,2]
[316017368,1709326262706,-1305.9,0.00022136,2]
[316017369,1709326262716,-2474.48,0.00022136,2]
[316017370,1709326262725,-500.0,0.00022136,2]
[316017371,1709326262736,-1551.86,0.00022136,2]
[316017372,1709326262745,-1349.67,0.00022136,2]
[316017373,1709326262757,-500.0,0.00022136,2]
[316017374,1709326262767,-21665.72,0.00022136,2]
[316017375,1709326262777,-500.0,0.00022136,2]
[316017376,1709326262787,-1290.32,0.00022136,2]
[316017377,1709326262797,-792.03,0.00022136,2]
[316017378,1709326262807,-2195.04,0.00022136,2]
[316017379,1709326262817,-3470.74,0.00022136,2]
[316017380,1709326262827,-515.85952031,0.00022136,2]
[316017381,1709326262837,-868.43,0.00022136,2]
[316017382,1709326262847,-500.0,0.00022136,2]
[316017383,1709326262857,-1764.98,0.00022136,2]
[316017384,1709326262866,-500.0,0.00022136,2]
[316017385,1709326262876,-2473.65,0.00022136,2]
[316017386,1709326262885,-500.0,0.00022136,2]
[316017387,1709326262895,-500.0,0.00022136,2]
[316017388,1709326262905,-500.0,0.00022136,2]
[316017389,1709326262916,-1501.39,0.00022136,2]
[316017390,1709326262926,-548.97,0.00022136,2]
[316017391,1709326262935,-500.0,0.00022136,2]
[316017392,1709326262945,-500.0,0.00022136,2]
[316017393,1709326262954,-500.0,0.00022136,2]
[316017394,1709326262963,-1900.25,0.00022136,2]
[316017395,1709326262972,-666.05,0.00022136,2]
[316017396,1709326262982,-10426.32,0.00022136,2]
[316017397,1709326262991,-1014.03,0.00022136,2]
[316017398,1709326263001,-500.0,0.00022136,2]
[316017399,1709326263011,-500.0,0.00022136,2]
[316017400,1709326263020,-560.16006594,0.00022136,2]
[316017401,1709326263029,-653.86,0.00022136,2]
[316017402,1709326263039,-863.78,0.00022136,2]
[316017403,1709326263048,-530.99,0.00022136,2]
[316017404,1709326263058,-1227.72,0.00022136,2]
[316017405,1709326263067,-500.0,0.00022136,2]
[316017406,1709326263077,-500.0,0.00022136,2]
[316017407,1709326263086,-631.8,0.00022136,2]
[316017408,1709326263096,-17865.16,0.00022136,2]
[316017409,1709326263106,-500.0,0.00022136,2]
[316017410,1709326263115,-500.0,0.00022136,2]
[316017411,1709326263125,-1711.85,0.00022136,2]
[316017412,1709326263134,-500.0,0.00022136,2]
[316017413,1709326263144,-1119.33,0.00022136,2]
[316017414,1709326263153,-1825.66,0.00022136,2]
[316017415,1709326263163,-1082.83,0.00022136,2]
[316017416,1709326263173,-500.0,0.00022136,2]
[316017417,1709326263183,-735.02,0.00022136,2]
[316017418,1709326263192,-545.79,0.00022136,2]
[316017419,1709326263202,-500.0,0.00022136,2]
[316017420,1709326263213,-552.52,0.00022136,2]
[316017421,1709326263223,-500.0,0.00022136,2]
[316017422,1709326263233,-1669.68,0.00022136,2]
[316017423,1709326263243,-709.91,0.00022136,2]
[316017424,1709326263255,-1283.48,0.00022136,2]
[316017425,1709326263266,-782.39,0.00022136,2]
[316017426,1709326263275,-1490.04,0.00022136,2]
[316017427,1709326263285,-500.0,0.00022136,2]
[316017428,1709326263294,-500.0,0.00022136,2]
[316017429,1709326263303,-500.0,0.00022136,2]
[316017430,1709326263313,-500.0,0.00022136,2]
[316017431,1709326263322,-500.0,0.00022136,2]
[316017432,1709326263331,-541.41781496,0.00022136,2]
[316017433,1709326263341,-500.0,0.00022136,2]
[316017434,1709326263352,-500.0,0.00022136,2]
[316017435,1709326263365,-500.0,0.00022136,2]
[316017436,1709326263374,-502.99,0.00022136,2]
[316017437,1709326263385,-513.43,0.00022136,2]
[316017438,1709326263394,-500.0,0.00022136,2]
[316017439,1709326263405,-523.5,0.00022136,2]
[316017440,1709326263415,-1029.49,0.00022136,2]
[316017441,1709326263425,-2748.63,0.00022136,2]
[316017442,1709326263435,-560.43873467,0.00022136,2]
[316017443,1709326263446,-550.36,0.00022136,2]
[316017444,1709326263455,-500.0,0.00022136,2]
[316017445,1709326263466,-1335.02,0.00022136,2]
[316017446,1709326263475,-500.0,0.00022136,2]
[316017447,1709326263485,-500.0,0.00022136,2]
[316017448,1709326263495,-651.38,0.00022136,2]
[316017449,1709326263506,-500.0,0.00022136,2]
[316017450,1709326263515,-1253.85,0.00022136,2]
[316017451,1709326263524,-500.0,0.00022136,2]
[316017452,1709326263534,-500.0,0.00022136,2]
[316017453,1709326263543,-500.0,0.00022136,2]
[316017454,1709326263553,-1447.41,0.00022136,2]
[316017455,1709326263562,-500.0,0.00022136,2]
[316017456,1709326263571,-1115.76,0.00022136,2]
[316017457,1709326263580,-1052.26,0.00022136,2]
[316017458,1709326263590,-500.0,0.00022136,2]
[316017459,1709326263599,-500.0,0.00022136,2]
[316017460,1709326263609,-1958.2,0.00022136,2]
[316017461,1709326263618,-500.0,0.00022136,2]
[316017462,1709326263628,-569.3049033,0.00022136,2]
[316017463,1709326263639,-500.0,0.00022136,2]
[316017464,1709326263649,-870.33,0.00022136,2]
[316017465,1709326263659,-2133.89,0.00022136,2]
[316017466,1709326263671,-574.88072185,0.00022136,2]